{"text_format":"1","workbook":"xlsx","n_sheets":20,"sheets":["Stamdata","$Hest","$Obli1","$Obli2","$Obli3","$Teknisk1","$Teknisk23","$Artistisk3","$Artistisk2","$Artistisk1","$TekniskTest","$TekniskArtistisk","$TekniskTestYV","$TekniskArtistiskYV","$ObliMini","$ObliE","$KürE","$ObliF","$KürF","$Stam"],"not_rendered":{"charts":0,"images":5,"macros":1,"external_links":0,"defined_names":13,"comments":0,"pivot_tables":0},"unopened":[],"bounds":{"document_bytes":16777216,"sheet_cells":100000,"rows_first":2000,"rows_last":500,"rows_between":2000,"halvings":0,"cell_chars":16384,"cell_head_chars":4096},"cells_cut":0,"cells_raw":0,"read":"whole","date_system":"1900"}

{"sheet":"Stamdata","index":0,"n_rows":54,"n_cols":10,"rows_kept":54,"cut":false,"hidden":false,"merged":[[0,1,0,9],[18,9,21,9],[18,8,21,8],[18,6,21,7],[8,6,8,9],[9,6,9,9],[8,1,11,3],[16,1,16,4],[17,1,17,2],[17,3,17,4],[16,6,16,9],[17,6,17,7],[8,4,8,5],[9,4,9,5],[10,4,10,5],[11,4,11,5],[13,1,14,3],[13,6,13,9],[14,6,14,9],[13,4,13,5],[14,4,14,5],[1,1,2,9],[4,1,6,3],[4,4,4,5],[5,4,5,5],[6,6,6,9],[4,6,4,9],[5,6,5,9],[6,4,6,5],[53,3,54,5],[53,6,54,9],[10,6,10,9],[11,6,11,9],[24,1,25,6],[26,1,28,6],[29,1,31,6],[33,1,34,6],[18,3,21,4],[19,1,21,1],[19,2,21,2],[43,1,44,6],[45,1,50,6],[51,2,51,9],[35,1,38,6],[39,1,41,6]]}
[null,"Dommersedler\nVoltigering - Individuel"]
[null,"For at bruge dette dokument skal makroer aktiveres"]
[]
[]
[null,"Oplysninger om stævnet",null,null,"Dato:",null,""]
[null,null,null,null,"Stævne:",null,""]
[null,null,null,null,"Klassenummer:"]
[]
[null,"Oplysninger om voltigøren",null,null,"Deltager:"]
[null,null,null,null,"Armnummer:"]
[null,null,null,null,"Klub:"]
[null,null,null,null,"Licensnummer:"]
[]
[null,"Oplysninger om hesten",null,null,"Hest:"]
[null,null,null,null,"Longefører:"]
[]
[null,"Dommersedler",null,null,null,null,"Klassen"]
[null,"Antal dommere",null,"Antal runder",null,null,"Aldersgruppe/klasse",null,"Køn","Niveau"]
[null,"Alm. stævne","Træhest"]
[]
[]
[]
[null,1,null,1,false,true,0,0,0,false]
[]
[null,"Opret dommersedler"]
[]
[null,"Når alle ovenstående felter er korrekt udfyldt kan dommersedlerne oprettes, ved at trykke på knappen til højre"]
[]
[]
[null,"Opdager man at man har lavet en fejl, kan sedler slettes igen. Fejlen kan rettes, og nogle nye dommersedler kan oprettes igen."]
[]
[]
[]
[null,"Udskriv dommersedler"]
[]
[null,"Hvis alt er korrekt, kan dommersedlerne udskrives. Ved at trykke på knappen 'Udskriv' kan man selv vælge printer. Alle indstillinger er indstillet korrekt på forhånd."]
[]
[]
[]
[null,"Ved at trykke på knappen 'Auto-udskriv' udskrives automatisk på den aktive printer."]
[]
[]
[]
[null,"Gem dommersedler"]
[]
[null,"Dommersedlerne kan gemmes enten med 'gem som', eller med knappen 'Auto-gem'. Sidstnævnte gemmer automatisk dommersedlerne i samme mappe som dette program, med stien og navnet noteret herunder.\nHar man ændret i stamoplysninger uden at ændre klassen, kan man opdatere filnavnet med 'Opdater filnavn'. Skal hver klasse gemmes i sin egen mappe, kan 'Fordel i mapper' afkrydses."]
[]
[]
[]
[]
[]
[null,"Filnavn:"]
[]
[null,null,null,"For tekniske brugere"]

{"sheet":"$Hest","index":1,"n_rows":32,"n_cols":16,"rows_kept":32,"cut":false,"hidden":true,"merged":[[21,1,24,1],[21,2,23,9],[21,10,24,12],[24,2,24,4],[23,13,24,13],[23,15,24,15],[21,13,22,15],[17,13,18,15],[19,13,20,13],[19,15,20,15],[0,1,0,2],[0,3,0,10],[0,13,1,14],[0,15,1,15],[1,1,1,2],[1,3,1,10],[9,13,9,15],[2,13,2,14],[3,1,3,2],[3,3,3,10],[3,13,3,14],[4,1,4,2],[4,3,4,6],[4,7,4,8],[4,9,4,10],[4,13,4,14],[6,1,6,2],[6,3,6,10],[7,1,7,2],[7,3,7,10],[10,1,14,1],[10,2,14,12],[15,1,15,2],[15,5,15,6],[15,7,15,8],[15,9,15,10],[15,11,15,12],[17,10,18,12],[19,8,19,12],[10,13,14,15],[15,3,15,4],[15,13,16,13],[15,14,16,14],[15,15,16,15],[16,5,16,6],[16,7,16,8],[16,9,16,10],[16,11,16,12],[19,6,19,7],[20,2,20,3],[20,4,20,5],[20,6,20,7],[17,2,18,9],[16,1,16,2],[17,1,20,1],[16,3,16,4],[19,2,19,3],[19,4,19,5],[29,11,30,15],[31,11,31,15],[29,4,30,9],[31,4,31,9],[26,9,26,14]]}
[null,"Stævne:",null,{"$f":"IF(Sted<>0,Sted,\"\")","v":""},null,null,null,null,null,null,null,{"$f":"P27","v":0},null,"Dommerbord:"]
[null,"Dato:",null,{"$f":"IF(Dato<>0,Dato,\"\")","v":""}]
[null,null,null,null,null,null,null,null,null,null,null,null,null,"Runde nr:"]
[null,"Udøver:",null,{"$f":"IF(Navn<>0,Navn,\"\")","v":""},null,null,null,null,null,null,null,null,null,"Klasse nr:",null,{"$f":"IF(KlasseNr<>0,KlasseNr,\"\")","v":""}]
[null,"Klub:",null,{"$f":"IF(Klub<>0,Klub,\"\")","v":""},null,null,null,"Licensnr.:",null,{"$f":"IF(Licens<>0,Licens,\"\")","v":""},null,null,null,"Arm nr:",null,{"$f":"IF(ArmNr<>0,ArmNr,\"\")","v":""}]
[]
[null,"Hest:",null,{"$f":"IF(Hest<>0,Hest,\"\")","v":""}]
[null,"Longefører:",null,{"$f":"IF(LongeF<>0,LongeF,\"\")","v":""}]
[]
[null,null,null,null,null,null,null,null,null,null,null,null,null,"Point 0 til 10"]
[null,"Kvalitet af Galop \nog Træning","• Rytme/Takt: Regelmæssighed, energi, konstant skridtlængde, tydelig 3-taktet, tydelig svævefase.\n• Løsgjorthed: Løsgjorthed og smidighed gennem hele hestens krop. Smidig, svingende ryg. Afslappet hals og nakke. Elasticitet. Positiv muskelspænding.\n• Forbindelse/kontakt: Bridge of engagement. Rundet ryg og aktiveret core. Energi fra bagparten flyder gennem hele kroppen til blød og fleksibel kontakt på indspændingstøjler og longe.\n• Spændstighed: Selvbæring med elastiske skridt, smidighed, og aktivering af bagpart. Energi genereret fra aktive bagben inde under kroppens tyngdepunkt (bæring og afskub). Løft af forpart (op-ad-bakke tendens) og sænkning af kryds.\n• Ligeudretning: ‘Relativ’ ligeudretning på volten. Bagben følger forbenenes spor. Hestens længdeakse gennem hele kroppen følger voltens spor.\n• Samlingsgrad: Kryds og bagpart sænket og aktiveret. Bagben vinklet ind under hesten med resulterende lethed og frihed i forpart. Hele overlinjen forlænges. Kortere, kraftfulde, energiske skridt.",null,null,null,null,null,null,null,null,null,null,"Kommentarer"]
[]
[]
[]
[]
[null,"Rytme\n10%",null,"Løsgjorthed\n10%",null,"Forbindelse\n10%",null,"Spændstighed\n10%",null,"Ligeudretning\n10%",null,"Samlingsgrad\n10%",null,"A1\n60%",{"$f":"SUM(B17:M17)/6","v":0},{"$f":"MAX(0,O16*0.6)","v":0}]
[]
[null,"Voltigerbarhed","• Villighed/lydighed: Ingen modstand eller tøven. Opmærksom på hjælperne. Harmoni og lethed.\n• Balance i tempo (frem/tilbage): Konstant korrekt tempo og energi uden farten øges eller sænkes.\n• Balance på volten (ind/ud): Konstant volte på min. 15 m. diameter uden at falde ind i eller ud af volten.",null,null,null,null,null,null,null,"Kommentarer"]
[]
[null,null,"Villighed og lydighed-50%",null,"Balance i tempo - 25%",null,"Balance på volten - 25%",null,"  Fradrag",null,null,null,null,"A2\n25%",{"$f":"C21*0.5+E21*0.25+G21*0.25","v":0},{"$f":"MAX(0,(O20-O21)*0.25)","v":0}]
[null,null,null,null,null,null,null,null,null,null,null,null,null,null,{"$f":"SUM(I21:M21)","v":0}]
[null,"Longering","• Longeringen skal afspejle et let og enkelt samarbejde og kommunikation mellem longefører og hest. Korrekte, diskrete hjælpere. Korrekt placering og kropsholdning. Passende påklædning. Korrekt tilpasset udstyr.\n• Indløb, hilsen, travrunde: Skal udføres i et flydende forløb fra hesten kommer ind på banen til anspring i galop og voltigøren bevæger sig ud til hesten.",null,null,null,null,null,null,null,"Kommentarer"]
[]
[null,null,null,null,null,null,null,null,null,null,null,null,null,"A3\n15%",null,{"$f":"IF(O24<>\"\",MAX(0.00001,(O24-O25)*0.15),0)","v":0}]
[null,null,"Fradrag",null,null,null,null,null,null,null,null,null,null,null,{"$f":"SUM(F25:J25)","v":0}]
[]
[null,null,null,null,null,null,null,null,null,"Total hest:",null,null,null,null,null,{"$f":"ROUND(P16+P20+P24,3)","v":0}]
[]
[]
[]
[]
[null,null,null,null,"Dommer",null,null,null,null,null,null,"Underskrift"]

{"sheet":"$Obli1","index":2,"n_rows":45,"n_cols":16,"rows_kept":45,"cut":false,"hidden":true,"merged":[[44,11,44,15],[42,4,43,9],[44,4,44,9],[0,1,0,2],[0,3,0,10],[0,13,1,14],[0,15,1,15],[1,1,1,2],[1,3,1,10],[11,1,11,6],[11,7,11,14],[2,13,2,14],[3,1,3,2],[3,3,3,10],[3,13,3,14],[4,1,4,2],[4,3,4,6],[4,7,4,8],[4,9,4,10],[4,13,4,14],[6,1,6,2],[6,3,6,10],[7,1,7,2],[7,3,7,10],[10,7,10,14],[12,1,12,6],[12,7,12,14],[13,1,13,6],[13,7,13,14],[14,1,14,6],[14,7,14,14],[15,1,15,6],[15,7,15,14],[21,7,21,14],[23,1,40,15],[42,11,43,15],[16,1,16,6],[16,7,16,14],[17,1,17,6],[17,7,17,14],[19,7,19,14]]}
[null,"Stævne:",null,{"$f":"IF(Sted<>0,Sted,\"\")","v":""},null,null,null,null,null,null,null,{"$f":"P22","v":0},null,"Dommerbord:"]
[null,"Dato:",null,{"$f":"IF(Dato<>0,Dato,\"\")","v":""}]
[null,null,null,null,null,null,null,null,null,null,null,null,null,"Runde nr:"]
[null,"Udøver:",null,{"$f":"IF(Navn<>0,Navn,\"\")","v":""},null,null,null,null,null,null,null,null,null,"Klasse nr:",null,{"$f":"IF(KlasseNr<>0,KlasseNr,\"\")","v":""}]
[null,"Klub:",null,{"$f":"IF(Klub<>0,Klub,\"\")","v":""},null,null,null,"Licensnr.:",null,{"$f":"IF(Licens<>0,Licens,\"\")","v":""},null,null,null,"Arm nr:",null,{"$f":"IF(ArmNr<>0,ArmNr,\"\")","v":""}]
[]
[null,"Hest:",null,{"$f":"IF(Hest<>0,Hest,\"\")","v":""}]
[null,"Longefører:",null,{"$f":"IF(LongeF<>0,LongeF,\"\")","v":""}]
[]
[]
[null,null,null,null,null,null,null,"Kommentarer",null,null,null,null,null,null,null,"Point"]
[null,"Opspring"]
[null,"Ridesæde"]
[null,"Fane"]
[null,"Stand"]
[null,"Forlæns sving - samlede ben"]
[null,"Halv mølle"]
[null,"Baglæns sving - adskilte ben - afg. ind"]
[]
[null,null,null,null,null,null,null,"Samlet obligatoriske:",null,null,null,null,null,null,null,{"$f":"SUM(P12:P18)","v":0}]
[]
[null,null,null,null,null,null,null,"/7 = Total obligatoriske:",null,null,null,null,null,null,null,{"$f":"ROUND(P20/7,3)","v":0}]
[]
[]
[]
[]
[]
[]
[]
[]
[]
[]
[]
[]
[]
[]
[]
[]
[]
[]
[]
[]
[]
[]
[null,null,null,null,"Dommer",null,null,null,null,null,null,"Underskrift"]

{"sheet":"$Obli2","index":3,"n_rows":45,"n_cols":16,"rows_kept":45,"cut":false,"hidden":true,"merged":[[0,1,0,2],[0,3,0,10],[0,13,1,14],[0,15,1,15],[1,1,1,2],[1,3,1,10],[10,1,10,6],[10,7,10,14],[2,13,2,14],[3,1,3,2],[3,3,3,10],[3,13,3,14],[4,1,4,2],[4,3,4,6],[4,7,4,8],[4,9,4,10],[4,13,4,14],[6,1,6,2],[6,3,6,10],[7,1,7,2],[7,3,7,10],[9,7,9,14],[11,1,11,6],[11,7,11,14],[12,1,12,6],[12,7,12,14],[13,1,13,6],[13,7,13,14],[14,1,14,6],[14,7,14,14],[15,1,15,6],[15,7,15,14],[16,1,16,6],[16,7,16,14],[42,11,43,15],[44,11,44,15],[42,4,43,9],[44,4,44,9],[17,1,17,6],[17,7,17,14],[19,7,19,14],[21,7,21,14],[23,1,40,15]]}
[null,"Stævne:",null,{"$f":"IF(Sted<>0,Sted,\"\")","v":""},null,null,null,null,null,null,null,{"$f":"P22","v":0},null,"Dommerbord:"]
[null,"Dato:",null,{"$f":"IF(Dato<>0,Dato,\"\")","v":""}]
[null,null,null,null,null,null,null,null,null,null,null,null,null,"Runde nr:"]
[null,"Udøver:",null,{"$f":"IF(Navn<>0,Navn,\"\")","v":""},null,null,null,null,null,null,null,null,null,"Klasse nr:",null,{"$f":"IF(KlasseNr<>0,KlasseNr,\"\")","v":""}]
[null,"Klub:",null,{"$f":"IF(Klub<>0,Klub,\"\")","v":""},null,null,null,"Licensnr.:",null,{"$f":"IF(Licens<>0,Licens,\"\")","v":""},null,null,null,"Arm nr:",null,{"$f":"IF(ArmNr<>0,ArmNr,\"\")","v":""}]
[]
[null,"Hest:",null,{"$f":"IF(Hest<>0,Hest,\"\")","v":""}]
[null,"Longefører:",null,{"$f":"IF(LongeF<>0,LongeF,\"\")","v":""}]
[]
[null,null,null,null,null,null,null,"Kommentarer",null,null,null,null,null,null,null,"Point"]
[null,"Opspring"]
[null,"Ridesæde"]
[null,"Fane"]
[null,"Mølle"]
[null,"Saks - Første del"]
[null,"Saks - Andel del"]
[null,"Stand"]
[null,"Første del flanke med nedgang til indvendig"]
[]
[null,null,null,null,null,null,null,"Samlet obligatoriske:",null,null,null,null,null,null,null,{"$f":"SUM(P11:P18)","v":0}]
[]
[null,null,null,null,null,null,null,"/8 = Total obligatoriske:",null,null,null,null,null,null,null,{"$f":"ROUND(P20/8,3)","v":0}]
[]
[]
[]
[]
[]
[]
[]
[]
[]
[]
[]
[]
[]
[]
[]
[]
[]
[]
[]
[]
[]
[]
[null,null,null,null,"Dommer",null,null,null,null,null,null,"Underskrift"]

{"sheet":"$Obli3","index":4,"n_rows":45,"n_cols":16,"rows_kept":45,"cut":false,"hidden":true,"merged":[[0,1,0,2],[0,3,0,10],[0,13,1,14],[0,15,1,15],[1,1,1,2],[1,3,1,10],[10,1,10,6],[10,7,10,14],[2,13,2,14],[3,1,3,2],[3,3,3,10],[3,13,3,14],[4,1,4,2],[4,3,4,6],[4,7,4,8],[4,9,4,10],[4,13,4,14],[6,1,6,2],[6,3,6,10],[7,1,7,2],[7,3,7,10],[9,7,9,14],[11,1,11,6],[11,7,11,14],[12,1,12,6],[12,7,12,14],[13,1,13,6],[13,7,13,14],[14,1,14,6],[14,7,14,14],[15,1,15,6],[15,7,15,14],[16,1,16,6],[16,7,16,14],[44,11,44,15],[17,1,17,6],[17,7,17,14],[19,7,19,14],[21,7,21,14],[23,1,40,15],[42,11,43,15],[42,4,43,9],[44,4,44,9]]}
[null,"Stævne:",null,{"$f":"IF(Sted<>0,Sted,\"\")","v":""},null,null,null,null,null,null,null,{"$f":"P22","v":0},null,"Dommerbord:"]
[null,"Dato:",null,{"$f":"IF(Dato<>0,Dato,\"\")","v":""}]
[null,null,null,null,null,null,null,null,null,null,null,null,null,"Runde nr:"]
[null,"Udøver:",null,{"$f":"IF(Navn<>0,Navn,\"\")","v":""},null,null,null,null,null,null,null,null,null,"Klasse nr:",null,{"$f":"IF(KlasseNr<>0,KlasseNr,\"\")","v":""}]
[null,"Klub:",null,{"$f":"IF(Klub<>0,Klub,\"\")","v":""},null,null,null,"Licensnr.:",null,{"$f":"IF(Licens<>0,Licens,\"\")","v":""},null,null,null,"Arm nr:",null,{"$f":"IF(ArmNr<>0,ArmNr,\"\")","v":""}]
[]
[null,"Hest:",null,{"$f":"IF(Hest<>0,Hest,\"\")","v":""}]
[null,"Longefører:",null,{"$f":"IF(LongeF<>0,LongeF,\"\")","v":""}]
[]
[null,null,null,null,null,null,null,"Kommentarer",null,null,null,null,null,null,null,"Point"]
[null,"Opspring"]
[null,"Fane"]
[null,"Mølle"]
[null,"Saks - Første del"]
[null,"Saks - Andel del"]
[null,"Stand"]
[null,"Flanke - Første del"]
[null,"Flanke - Anden del"]
[]
[null,null,null,null,null,null,null,"Samlet obligatoriske:",null,null,null,null,null,null,null,{"$f":"SUM(P11:P18)","v":0}]
[]
[null,null,null,null,null,null,null,"/8 = Total obligatoriske:",null,null,null,null,null,null,null,{"$f":"ROUND(P20/8,3)","v":0}]
[]
[]
[]
[]
[]
[]
[]
[]
[]
[]
[]
[]
[]
[]
[]
[]
[]
[]
[]
[]
[]
[]
[null,null,null,null,"Dommer",null,null,null,null,null,null,"Underskrift"]

{"sheet":"$Teknisk1","index":5,"n_rows":45,"n_cols":16,"rows_kept":45,"cut":false,"hidden":true,"merged":[[0,1,0,2],[0,3,0,10],[0,13,1,14],[0,15,1,15],[1,1,1,2],[1,3,1,10],[2,13,2,14],[3,1,3,2],[3,3,3,10],[3,13,3,14],[4,1,4,2],[4,3,4,6],[4,7,4,8],[4,9,4,10],[4,13,4,14],[38,9,38,13],[6,1,6,2],[6,3,6,10],[7,1,7,2],[7,3,7,10],[10,1,11,15],[26,1,26,4],[30,9,30,14],[34,1,34,3],[34,5,34,7],[34,11,34,13],[36,9,36,13],[40,9,40,14],[42,4,43,9],[42,11,43,15],[44,4,44,9],[44,11,44,15]]}
[null,"Stævne:",null,{"$f":"IF(Sted<>0,Sted,\"\")","v":""},null,null,null,null,null,null,null,{"$f":"P41","v":0},null,"Dommerbord:"]
[null,"Dato:",null,{"$f":"IF(Dato<>0,Dato,\"\")","v":""}]
[null,null,null,null,null,null,null,null,null,null,null,null,null,"Runde nr:"]
[null,"Udøver:",null,{"$f":"IF(Navn<>0,Navn,\"\")","v":""},null,null,null,null,null,null,null,null,null,"Klasse nr:",null,{"$f":"IF(KlasseNr<>0,KlasseNr,\"\")","v":""}]
[null,"Klub:",null,{"$f":"IF(Klub<>0,Klub,\"\")","v":""},null,null,null,"Licensnr.:",null,{"$f":"IF(Licens<>0,Licens,\"\")","v":""},null,null,null,"Arm nr:",null,{"$f":"IF(ArmNr<>0,ArmNr,\"\")","v":""}]
[]
[null,"Hest:",null,{"$f":"IF(Hest<>0,Hest,\"\")","v":""}]
[null,"Longefører:",null,{"$f":"IF(LongeF<>0,LongeF,\"\")","v":""}]
[]
[null,"Protokol",null,{"$f":"SUBSTITUTE(B11,\" \",\"\")","v":""}]
[]
[]
[null,1,2,3,4,5,6,7,8,9,10,11,12,13,14,15]
[null,{"$f":"IFERROR(INT(MID(Protokol1,B13,1)),UPPER(MID(Protokol1,B13,1)))","v":""},"","","","","","","","","","","","","",""]
[null,16,17,18,19,20,21,22,23,24,25,26,27,28,29,30]
[null,{"$f":"IFERROR(INT(MID(Protokol1,B15,1)),UPPER(MID(Protokol1,B15,1)))","v":""},"","","","","","","","","","","","","",""]
[null,31,32,33,34,35,36,37,38,39,40,41,42,43,44,45]
[null,{"$f":"IFERROR(INT(MID(Protokol1,B17,1)),UPPER(MID(Protokol1,B17,1)))","v":""},"","","","","","","","","","","","","",""]
[null,46,47,48,49,50,51,52,53,54,55,56,57,58,59,60]
[null,{"$f":"IFERROR(INT(MID(Protokol1,B19,1)),UPPER(MID(Protokol1,B19,1)))","v":""},"","","","","","","","","","","","","",""]
[null,61,62,63,64,65,66,67,68,69,70,71,72,73,74,75]
[null,{"$f":"IFERROR(INT(MID(Protokol1,B21,1)),UPPER(MID(Protokol1,B21,1)))","v":""},"","","","","","","","","","","","","",""]
[null,76,77,78,79,80,81,82,83,84,85,86,87,88,89,90]
[null,{"$f":"IFERROR(INT(MID(Protokol1,B23,1)),UPPER(MID(Protokol1,B23,1)))","v":""},"","","","","","","","","","","","","",""]
[null,91,92,93,94,95,96,97,98,99,100,101,102,103,104,105]
[null,{"$f":"IFERROR(INT(MID(Protokol1,B25,1)),UPPER(MID(Protokol1,B25,1)))","v":""},"","","","","","","","","","","","","",""]
[null,"Fradrag for fald:"]
[]
[null,"Sværhedsgrad"]
[]
[null,null,null,null,null,null,null,null,null,"Ingen point"]
[]
[null,"Udførelse"]
[]
[null,"Samlet fradrag",null,null,{"$f":"IF(B14<>\"\",SUMIF(B14:P14,\">0\")+SUMIF(B16:P16,\">0\")+SUMIF(B18:P18,\">0\")+SUMIF(B20:P20,\">0\")+SUMIF(B22:P22,\">0\")+SUMIF(B24:P24,\">0\")+SUMIF(B26:P26,\">0\"),\"\")","v":""}," /antal øvelser",null,null,{"$f":"IF(B14<>\"\",COUNTIF(B14:P26,\"E\")+COUNTIF(B14:P26,\"M\")+COUNTIF(B14:P26,\"D\")+COUNTIF(B14:P26,\"R\"),\"\")","v":""},"=",{"$f":"IFERROR(IF(ROUND(E35/I35,3)>10,9.99999,ROUND(E35/I35,3)),0)","v":0},"Fratrukket 10",null,null,{"$f":"IF(K35>0,10-K35,0)","v":0}]
[]
[null,null,null,null,null,null,null,null,null,"Sum af fradrag for fald:",null,null,null,null,{"$f":"SUM(F27:M27)","v":0}]
[]
[null,null,null,null,null,null,null,null,null,"Total udførelse:",null,null,null,null,{"$f":"O35-O37","v":0},1]
[]
[null,null,null,null,null,null,null,null,null,"Total teknisk score:",null,null,null,null,null,{"$f":"O39","v":0}]
[]
[]
[]
[null,null,null,null,"Dommer",null,null,null,null,null,null,"Underskrift"]

{"sheet":"$Teknisk23","index":6,"n_rows":48,"n_cols":16,"rows_kept":48,"cut":false,"hidden":true,"merged":[[0,1,0,2],[0,3,0,10],[0,13,1,14],[0,15,1,15],[1,1,1,2],[1,3,1,10],[2,13,2,14],[3,1,3,2],[3,3,3,10],[3,13,3,14],[4,1,4,2],[4,3,4,6],[4,7,4,8],[4,9,4,10],[4,13,4,14],[32,4,32,6],[6,1,6,2],[6,3,6,10],[7,1,7,2],[7,3,7,10],[26,1,26,4],[10,1,11,15],[27,1,28,4],[28,9,28,10],[29,4,29,6],[30,4,30,6],[31,4,31,6],[47,4,47,9],[47,11,47,15],[33,4,33,6],[33,9,33,12],[35,1,36,4],[35,9,35,13],[37,1,37,3],[37,5,37,7],[37,11,37,13],[39,9,39,13],[41,9,41,13],[43,9,43,14],[45,4,46,9],[45,11,46,15]]}
[null,"Stævne:",null,{"$f":"IF(Sted<>0,Sted,\"\")","v":""},null,null,null,null,null,null,null,{"$f":"P44","v":0},null,"Dommerbord:"]
[null,"Dato:",null,{"$f":"IF(Dato<>0,Dato,\"\")","v":""}]
[null,null,null,null,null,null,null,null,null,null,null,null,null,"Runde nr:"]
[null,"Udøver:",null,{"$f":"IF(Navn<>0,Navn,\"\")","v":""},null,null,null,null,null,null,null,null,null,"Klasse nr:",null,{"$f":"IF(KlasseNr<>0,KlasseNr,\"\")","v":""}]
[null,"Klub:",null,{"$f":"IF(Klub<>0,Klub,\"\")","v":""},null,null,null,"Licensnr.:",null,{"$f":"IF(Licens<>0,Licens,\"\")","v":""},null,null,null,"Arm nr:",null,{"$f":"IF(ArmNr<>0,ArmNr,\"\")","v":""}]
[]
[null,"Hest:",null,{"$f":"IF(Hest<>0,Hest,\"\")","v":""}]
[null,"Longefører:",null,{"$f":"IF(LongeF<>0,LongeF,\"\")","v":""}]
[]
[null,"Protokol",null,{"$f":"SUBSTITUTE(B11,\" \",\"\")","v":""}]
[]
[]
[null,1,2,3,4,5,6,7,8,9,10,11,12,13,14,15]
[null,{"$f":"IFERROR(INT(MID(Protokol,B13,1)),UPPER(MID(Protokol,B13,1)))","v":""},"","","","","","","","","","","","","",""]
[null,16,17,18,19,20,21,22,23,24,25,26,27,28,29,30]
[null,{"$f":"IFERROR(INT(MID(Protokol,B15,1)),UPPER(MID(Protokol,B15,1)))","v":""},"","","","","","","","","","","","","",""]
[null,31,32,33,34,35,36,37,38,39,40,41,42,43,44,45]
[null,{"$f":"IFERROR(INT(MID(Protokol,B17,1)),UPPER(MID(Protokol,B17,1)))","v":""},"","","","","","","","","","","","","",""]
[null,46,47,48,49,50,51,52,53,54,55,56,57,58,59,60]
[null,{"$f":"IFERROR(INT(MID(Protokol,B19,1)),UPPER(MID(Protokol,B19,1)))","v":""},"","","","","","","","","","","","","",""]
[null,61,62,63,64,65,66,67,68,69,70,71,72,73,74,75]
[null,{"$f":"IFERROR(INT(MID(Protokol,B21,1)),UPPER(MID(Protokol,B21,1)))","v":""},"","","","","","","","","","","","","",""]
[null,76,77,78,79,80,81,82,83,84,85,86,87,88,89,90]
[null,{"$f":"IFERROR(INT(MID(Protokol,B23,1)),UPPER(MID(Protokol,B23,1)))","v":""},"","","","","","","","","","","","","",""]
[null,91,92,93,94,95,96,97,98,99,100,101,102,103,104,105]
[null,{"$f":"IFERROR(INT(MID(Protokol,B25,1)),UPPER(MID(Protokol,B25,1)))","v":""},"","","","","","","","","","","","","",""]
[null,"Fradrag for fald:"]
[null,"Sværhedsgrad"]
[null,null,null,null,null,null,null,null,null,"Antal*",null,"Faktor",null,null,"Point"]
[null,null,null,null,"R-øvelser",null,null,{"$f":"IF(COUNTIF(B14:P26,\"R\")>0,COUNTIF(B14:P26,\"R\"),\"\")","v":""},null,null,{"$f":"IF(H30<>\"\",IF(H30>10,10,H30),0)","v":0},1.3,null,null,{"$f":"IF(K30>0,L30*K30,\"\")","v":""}]
[null,null,null,null,"D-øvelser",null,null,{"$f":"IF(COUNTIF(B14:P26,\"D\")>0,COUNTIF(B14:P26,\"D\"),\"\")","v":""},null,null,{"$f":"IF(H31<>\"\",IF(H31+K30>10,10-N(K30),H31),0)","v":0},0.9,null,null,{"$f":"IF(K31>0,L31*K31,\"\")","v":""}]
[null,null,null,null,"M-øvelser",null,null,{"$f":"IF(COUNTIF(B14:P26,\"M\")>0,COUNTIF(B14:P26,\"M\"),\"\")","v":""},null,null,{"$f":"IF(H32<>\"\",IF(H32+K31+K30>10,10-(K31+K30),H32),0)","v":0},0.4,null,null,{"$f":"IF(K32>0,L32*K32,\"\")","v":""}]
[null,null,null,null,"E-øvelser",null,null,{"$f":"IF(COUNTIF(B14:P26,\"E\")>0,COUNTIF(B14:P26,\"E\"),\"\")","v":""},null,null,{"$f":"IF(H33<>\"\",IF(H33+K32+K31+K30>10,10-(K32+K31+K30),H33),0)","v":0},0,null,null,{"$f":"IF(K33>0,L33*K33,\"\")","v":""}]
[null,null,null,null,"Antal øvelser",null,null,{"$f":"IF(SUM(H30:H33)>0,SUM(H30:H33),\"\")","v":""},null,"*Max. 10 tællende øvelser"]
[]
[null,"Udførelse",null,null,null,null,null,null,null,"Total sværhedsgrad:",null,null,null,null,{"$f":"IF(SUM(O30:O33)>10,10,IF(SUM(K30:K33)>0,SUM(O30:O33),0))","v":0},0.3]
[]
[null,"Samlet fradrag",null,null,{"$f":"IF(B14<>\"\",SUMIF(B14:P14,\">0\")+SUMIF(B16:P16,\">0\")+SUMIF(B18:P18,\">0\")+SUMIF(B20:P20,\">0\")+SUMIF(B22:P22,\">0\")+SUMIF(B24:P24,\">0\")+SUMIF(B26:P26,\">0\"),\"\")","v":""}," /antal øvelser",null,null,{"$f":"H34","v":""},"=",{"$f":"IFERROR(IF(ROUND(E38/I38,3)>10,9.99999,ROUND(E38/I38,3)),0)","v":0},"Fratrukket 10",null,null,{"$f":"IF(K38>0,10-K38,0)","v":0}]
[]
[null,null,null,null,null,null,null,null,null,"Sum af fradrag for fald:",null,null,null,null,{"$f":"SUM(F27:M27)","v":0}]
[]
[null,null,null,null,null,null,null,null,null,"Total udførelse:",null,null,null,null,{"$f":"O38-O40","v":0},0.7]
[]
[null,null,null,null,null,null,null,null,null,"Total teknisk score:",null,null,null,null,null,{"$f":"O42*0.7+O36*0.3","v":0}]
[]
[]
[]
[null,null,null,null,"Dommer",null,null,null,null,null,null,"Underskrift"]

{"sheet":"$Artistisk3","index":7,"n_rows":27,"n_cols":16,"rows_kept":27,"cut":false,"hidden":true,"merged":[[0,1,0,2],[0,3,0,10],[0,13,1,14],[0,15,1,15],[1,1,1,2],[1,3,1,10],[9,1,9,2],[9,3,9,12],[2,13,2,14],[3,1,3,2],[3,3,3,10],[3,13,3,14],[4,1,4,2],[4,3,4,6],[4,7,4,8],[4,9,4,10],[4,13,4,14],[6,1,6,2],[6,3,6,10],[7,1,7,2],[7,3,7,10],[8,13,8,15],[10,1,11,2],[10,3,10,12],[11,3,11,12],[12,1,13,2],[12,3,12,12],[13,3,13,12],[26,4,26,9],[26,11,26,15],[15,1,18,7],[15,9,15,14],[17,9,17,14],[19,1,22,15],[24,4,25,9],[24,11,25,15]]}
[null,"Stævne:",null,{"$f":"IF(Sted<>0,Sted,\"\")","v":""},null,null,null,null,null,null,null,{"$f":"P18","v":0},null,"Dommerbord:"]
[null,"Dato:",null,{"$f":"IF(Dato<>0,Dato,\"\")","v":""}]
[null,null,null,null,null,null,null,null,null,null,null,null,null,"Runde nr:"]
[null,"Udøver:",null,{"$f":"IF(Navn<>0,Navn,\"\")","v":""},null,null,null,null,null,null,null,null,null,"Klasse nr:",null,{"$f":"IF(KlasseNr<>0,KlasseNr,\"\")","v":""}]
[null,"Klub:",null,{"$f":"IF(Klub<>0,Klub,\"\")","v":""},null,null,null,"Licensnr.:",null,{"$f":"IF(Licens<>0,Licens,\"\")","v":""},null,null,null,"Arm nr:",null,{"$f":"IF(ArmNr<>0,ArmNr,\"\")","v":""}]
[]
[null,"Hest:",null,{"$f":"IF(Hest<>0,Hest,\"\")","v":""}]
[null,"Longefører:",null,{"$f":"IF(LongeF<>0,LongeF,\"\")","v":""}]
[null,null,null,null,null,null,null,null,null,null,null,null,null,"Point 0 til 10"]
[null,"Hensyn og harmoni",null,"Hensyn til og harmoni med hesten\n• Valg af elementer og øvelser i harmoni med hesten baseret\npå belastning, sammensætning, balance og kontakt/forbindelse\n• Valg af øvelser der ikke overbelaster hesten",null,null,null,null,null,null,null,null,null,"COH\n20%",null,{"$f":"ROUND(O10*0.2,3)","v":0}]
[null,"Struktur",null,"Variation - øvelser*\n• Fordeling mellem statiske og dynamiske øvelser\n• Valg af øvelser, positioner og overgange fra forskellige strukturgrupper",null,null,null,null,null,null,null,null,null,"C10\n10%",null,{"$f":"ROUND(O11*0.1,3)","v":0}]
[null,null,null,"Variation - position*\n• Variation af placering af øvelser i forhold til hesten og i forhold til bevægelsesretningen\n• Brug af hele hesten: udnytte af alle områder af hesten inklusiv ryg, hals, bagpart og inderside af hesten",null,null,null,null,null,null,null,null,null,"C2\n10%",null,{"$f":"ROUND(O12*0.1,3)","v":0}]
[null,"Koreografi",null,"Sammensætning og kompleksitet\n• Flydende overgange og bevægelser der viser flow, kontrol og sammenhæng\n• Elementer, sekvenser, overgange, positioner og kombinationer af øvelser, der demonstrerer frihed i bevægelsen\n• Evne til at kontrollere og forbinde bevægelser og positioner i et ustabilt equilibrium",null,null,null,null,null,null,null,null,null,"C3\n30%",null,{"$f":"ROUND(O13*0.3,3)","v":0}]
[null,null,null,"Udnyttelse af musikken / kropssprog / udtryk\n• Fuld indlevelse i et gennemført musikalsk artistisk koncept\n• Gribende fortolkning af musikken\n• Høj grad af variation i udtryk, der afspejler forskellige og foranderlige elementer i musikken\n• Komplekst kropssprog og multidirektionale krops- og armbevægelser",null,null,null,null,null,null,null,null,null,"C4\n30%",null,{"$f":"ROUND(O14*0.3,3)","v":0}]
[null,"*Det er ikke obligatorisk at afkrydse alle bokse"]
[null,"Kommentarer",null,null,null,null,null,null,null,"Fradrag:"]
[]
[null,null,null,null,null,null,null,null,null,"Total artistisk score:",null,null,null,null,null,{"$f":"ROUND(SUM(P10:P14)-P16,3)","v":0}]
[]
[]
[]
[]
[]
[]
[]
[]
[null,null,null,null,"Dommer",null,null,null,null,null,null,"Underskrift"]

{"sheet":"$Artistisk2","index":8,"n_rows":27,"n_cols":16,"rows_kept":27,"cut":false,"hidden":true,"merged":[[19,1,22,15],[24,4,25,9],[24,11,25,15],[26,4,26,9],[26,11,26,15],[8,13,8,15],[12,1,13,2],[12,3,12,12],[13,3,13,12],[15,9,15,14],[10,1,11,2],[10,3,10,12],[11,3,11,12],[9,1,9,2],[9,3,9,12],[15,1,18,7],[17,9,17,14],[7,1,7,2],[7,3,7,10],[0,1,0,2],[0,3,0,10],[2,13,2,14],[3,1,3,2],[3,3,3,10],[3,13,3,14],[4,1,4,2],[4,3,4,6],[4,7,4,8],[4,9,4,10],[4,13,4,14],[0,13,1,14],[0,15,1,15],[1,1,1,2],[1,3,1,10],[6,1,6,2],[6,3,6,10]]}
[null,"Stævne:",null,{"$f":"IF(Sted<>0,Sted,\"\")","v":""},null,null,null,null,null,null,null,{"$f":"P18","v":0},null,"Dommerbord:"]
[null,"Dato:",null,{"$f":"IF(Dato<>0,Dato,\"\")","v":""}]
[null,null,null,null,null,null,null,null,null,null,null,null,null,"Runde nr:"]
[null,"Udøver:",null,{"$f":"IF(Navn<>0,Navn,\"\")","v":""},null,null,null,null,null,null,null,null,null,"Klasse nr:",null,{"$f":"IF(KlasseNr<>0,KlasseNr,\"\")","v":""}]
[null,"Klub:",null,{"$f":"IF(Klub<>0,Klub,\"\")","v":""},null,null,null,"Licensnr.:",null,{"$f":"IF(Licens<>0,Licens,\"\")","v":""},null,null,null,"Arm nr:",null,{"$f":"IF(ArmNr<>0,ArmNr,\"\")","v":""}]
[]
[null,"Hest:",null,{"$f":"IF(Hest<>0,Hest,\"\")","v":""}]
[null,"Longefører:",null,{"$f":"IF(LongeF<>0,LongeF,\"\")","v":""}]
[null,null,null,null,null,null,null,null,null,null,null,null,null,"Point 0 til 10"]
[null,"Hensyn og harmoni",null,"Hensyn til og harmoni med hesten\n• Valg af elementer og øvelser i harmoni med hesten baseret\npå belastning, sammensætning, balance og kontakt/forbindelse\n• Valg af øvelser der ikke overbelaster hesten",null,null,null,null,null,null,null,null,null,"COH\n20%",null,{"$f":"ROUND(O10*0.2,3)","v":0}]
[null,"Struktur",null,"Variation - øvelser*\n• Fordeling mellem statiske og dynamiske øvelser\n• Valg af øvelser, positioner og overgange fra forskellige strukturgrupper",null,null,null,null,null,null,null,null,null,"C1\n20%",null,{"$f":"ROUND(O11*0.2,3)","v":0}]
[null,null,null,"Variation - position*\n• Variation af placering af øvelser i forhold til hesten og i forhold til bevægelsesretningen\n• Brug af hele hesten: udnytte af alle områder af hesten inklusiv ryg, hals, bagpart og inderside af hesten",null,null,null,null,null,null,null,null,null,"C2\n10%",null,{"$f":"ROUND(O12*0.1,3)","v":0}]
[null,"Koreografi",null,"Sammensætning og kompleksitet\n• Flydende overgange og bevægelser der viser flow, kontrol og sammenhæng\n• Elementer, sekvenser, overgange, positioner og kombinationer af øvelser, der demonstrerer frihed i bevægelsen\n• Evne til at kontrollere og forbinde bevægelser og positioner i et ustabilt equilibrium",null,null,null,null,null,null,null,null,null,"C3\n25%",null,{"$f":"ROUND(O13*0.25,3)","v":0}]
[null,null,null,"Udnyttelse af musikken / kropssprog / udtryk\n• Fuld indlevelse i et gennemført musikalsk artistisk koncept\n• Gribende fortolkning af musikken\n• Høj grad af variation i udtryk, der afspejler forskellige og foranderlige elementer i musikken\n• Komplekst kropssprog og multidirektionale krops- og armbevægelser",null,null,null,null,null,null,null,null,null,"C4\n25%",null,{"$f":"ROUND(O14*0.25,3)","v":0}]
[null,"*Det er ikke obligatorisk at afkrydse alle bokse"]
[null,"Kommentarer",null,null,null,null,null,null,null,"Fradrag:"]
[]
[null,null,null,null,null,null,null,null,null,"Total artistisk score:",null,null,null,null,null,{"$f":"ROUND(SUM(P10:P14)-P16,3)","v":0}]
[]
[]
[]
[]
[]
[]
[]
[]
[null,null,null,null,"Dommer",null,null,null,null,null,null,"Underskrift"]

{"sheet":"$Artistisk1","index":9,"n_rows":27,"n_cols":16,"rows_kept":27,"cut":false,"hidden":true,"merged":[[0,1,0,2],[0,3,0,10],[0,13,1,14],[0,15,1,15],[1,1,1,2],[1,3,1,10],[9,1,9,2],[9,3,9,12],[2,13,2,14],[3,1,3,2],[3,3,3,10],[3,13,3,14],[4,1,4,2],[4,3,4,6],[4,7,4,8],[4,9,4,10],[4,13,4,14],[6,1,6,2],[6,3,6,10],[7,1,7,2],[7,3,7,10],[8,13,8,15],[10,1,11,2],[10,3,10,12],[11,3,11,12],[12,1,13,2],[12,3,12,12],[13,3,13,12],[26,4,26,9],[26,11,26,15],[15,1,18,7],[15,9,15,14],[17,9,17,14],[19,1,22,15],[24,4,25,9],[24,11,25,15]]}
[null,"Stævne:",null,{"$f":"IF(Sted<>0,Sted,\"\")","v":""},null,null,null,null,null,null,null,{"$f":"P18","v":0},null,"Dommerbord:"]
[null,"Dato:",null,{"$f":"IF(Dato<>0,Dato,\"\")","v":""}]
[null,null,null,null,null,null,null,null,null,null,null,null,null,"Runde nr:"]
[null,"Udøver:",null,{"$f":"IF(Navn<>0,Navn,\"\")","v":""},null,null,null,null,null,null,null,null,null,"Klasse nr:",null,{"$f":"IF(KlasseNr<>0,KlasseNr,\"\")","v":""}]
[null,"Klub:",null,{"$f":"IF(Klub<>0,Klub,\"\")","v":""},null,null,null,"Licensnr.:",null,{"$f":"IF(Licens<>0,Licens,\"\")","v":""},null,null,null,"Arm nr:",null,{"$f":"IF(ArmNr<>0,ArmNr,\"\")","v":""}]
[]
[null,"Hest:",null,{"$f":"IF(Hest<>0,Hest,\"\")","v":""}]
[null,"Longefører:",null,{"$f":"IF(LongeF<>0,LongeF,\"\")","v":""}]
[null,null,null,null,null,null,null,null,null,null,null,null,null,"Point 0 til 10"]
[null,"Hensyn og harmoni",null,"Hensyn til og harmoni med hesten\n• Valg af elementer og øvelser i harmoni med hesten baseret\npå belastning, sammensætning, balance og kontakt/forbindelse\n• Valg af øvelser der ikke overbelaster hesten",null,null,null,null,null,null,null,null,null,"COH\n20%",null,{"$f":"ROUND(O10*0.2,3)","v":0}]
[null,"Struktur",null,"Variation - øvelser*\n• Fordeling mellem statiske og dynamiske øvelser\n• Valg af øvelser, positioner og overgange fra forskellige strukturgrupper",null,null,null,null,null,null,null,null,null,"C1\n25%",null,{"$f":"ROUND(O11*0.25,3)","v":0}]
[null,null,null,"Variation - position*\n• Variation af placering af øvelser i forhold til hesten og i forhold til bevægelsesretningen\n• Brug af hele hesten: udnytte af alle områder af hesten inklusiv ryg, hals, bagpart og inderside af hesten",null,null,null,null,null,null,null,null,null,"C2\n20%",null,{"$f":"ROUND(O12*0.2,3)","v":0}]
[null,"Koreografi",null,"Sammensætning og kompleksitet\n• Flydende overgange og bevægelser der viser flow, kontrol og sammenhæng\n• Elementer, sekvenser, overgange, positioner og kombinationer af øvelser, der demonstrerer frihed i bevægelsen\n• Evne til at kontrollere og forbinde bevægelser og positioner i et ustabilt equilibrium",null,null,null,null,null,null,null,null,null,"C3\n20%",null,{"$f":"ROUND(O13*0.2,3)","v":0}]
[null,null,null,"Udnyttelse af musikken / kropssprog / udtryk\n• Fuld indlevelse i et gennemført musikalsk artistisk koncept\n• Gribende fortolkning af musikken\n• Høj grad af variation i udtryk, der afspejler forskellige og foranderlige elementer i musikken\n• Komplekst kropssprog og multidirektionale krops- og armbevægelser",null,null,null,null,null,null,null,null,null,"C4\n15%",null,{"$f":"ROUND(O14*0.15,3)","v":0}]
[null,"*Det er ikke obligatorisk at afkrydse alle bokse"]
[null,"Kommentarer",null,null,null,null,null,null,null,"Fradrag:"]
[]
[null,null,null,null,null,null,null,null,null,"Total artistisk score:",null,null,null,null,null,{"$f":"ROUND(SUM(P10:P14)-P16,3)","v":0}]
[]
[]
[]
[]
[]
[]
[]
[]
[null,null,null,null,"Dommer",null,null,null,null,null,null,"Underskrift"]

{"sheet":"$TekniskTest","index":10,"n_rows":43,"n_cols":16,"rows_kept":43,"cut":false,"hidden":true,"merged":[[2,13,2,14],[3,1,3,2],[3,3,3,10],[3,13,3,14],[4,1,4,2],[4,3,4,6],[4,7,4,8],[4,9,4,10],[4,13,4,14],[0,1,0,2],[0,3,0,10],[0,13,1,14],[0,15,1,15],[1,1,1,2],[1,3,1,10],[12,9,12,14],[13,9,13,14],[10,9,10,14],[11,9,11,14],[6,1,6,2],[6,3,6,10],[7,1,7,2],[7,3,7,10],[9,1,9,4],[9,5,9,8],[9,9,9,14],[10,1,10,4],[10,5,10,8],[12,1,12,4],[12,5,12,8],[13,1,13,4],[42,4,42,9],[34,12,34,13],[35,8,35,13],[36,8,36,14],[38,8,38,14],[42,11,42,15],[34,3,34,4],[34,5,34,6],[34,7,34,8],[34,10,34,11],[18,1,19,14],[40,4,41,9],[40,11,41,15],[34,1,34,2],[14,9,14,14],[16,1,16,14],[13,5,13,8],[11,1,11,4],[11,5,11,8],[14,1,14,4],[14,5,14,8]]}
[null,"Stævne:",null,{"$f":"IF(Sted<>0,Sted,\"\")","v":""},null,null,null,null,null,null,null,{"$f":"P39","v":0},null,"Dommerbord:"]
[null,"Dato:",null,{"$f":"IF(Dato<>0,Dato,\"\")","v":""}]
[null,null,null,null,null,null,null,null,null,null,null,null,null,"Runde nr:"]
[null,"Udøver:",null,{"$f":"IF(Navn<>0,Navn,\"\")","v":""},null,null,null,null,null,null,null,null,null,"Klasse nr:",null,{"$f":"IF(KlasseNr<>0,KlasseNr,\"\")","v":""}]
[null,"Klub:",null,{"$f":"IF(Klub<>0,Klub,\"\")","v":""},null,null,null,"Licensnr.:",null,{"$f":"IF(Licens<>0,Licens,\"\")","v":""},null,null,null,"Arm nr:",null,{"$f":"IF(ArmNr<>0,ArmNr,\"\")","v":""}]
[]
[null,"Hest:",null,{"$f":"IF(Hest<>0,Hest,\"\")","v":""}]
[null,"Longefører:",null,{"$f":"IF(LongeF<>0,LongeF,\"\")","v":""}]
[]
[null,"Kategori",null,null,null,"Øvelse",null,null,null,"Kommentarer",null,null,null,null,null,"Point"]
[null,"Balance",null,null,null,"Baglæns stand"]
[null,"Timing / koordination",null,null,null,"Vejrmølle over håndtagene"]
[null,"Styrke",null,null,null,"Albuestand"]
[null,"Springkraft",null,null,null,"Opspring til baglæns skulderstand"]
[null,"Smidighed",null,null,null,"Baglæns nål"]
[]
[null,"Udførelse af yderligere øvelser - gennemsnit"]
[null,"Protokol",null,{"$f":"SUBSTITUTE(B19,\" \",\"\")","v":""}]
[]
[]
[null,1,2,3,4,5,6,7,8,9,10,11,12,13,14]
[null,{"$f":"IFERROR(INT(MID(Protokol,B21,1)),UPPER(MID(Protokol,B21,1)))","v":""},"","","","","","","","","","","","",""]
[null,15,16,17,18,19,20,21,22,23,24,25,26,27,28]
[null,{"$f":"IFERROR(INT(MID(Protokol,B23,1)),UPPER(MID(Protokol,B23,1)))","v":""},"","","","","","","","","","","","",""]
[null,29,30,31,32,33,34,35,36,37,38,39,40,41,42]
[null,{"$f":"IFERROR(INT(MID(Protokol,B25,1)),UPPER(MID(Protokol,B25,1)))","v":""},"","","","","","","","","","","","",""]
[null,43,44,45,46,47,48,49,50,51,52,53,54,55,56]
[null,{"$f":"IFERROR(INT(MID(Protokol,B27,1)),UPPER(MID(Protokol,B27,1)))","v":""},"","","","","","","","","","","","",""]
[null,57,58,59,60,61,62,63,64,65,66,67,68,69,70]
[null,{"$f":"IFERROR(INT(MID(Protokol,B29,1)),UPPER(MID(Protokol,B29,1)))","v":""},"","","","","","","","","","","","",""]
[null,71,72,73,74,75,76,77,78,79,80,81,82,83,84]
[null,{"$f":"IFERROR(INT(MID(Protokol,B31,1)),UPPER(MID(Protokol,B31,1)))","v":""},"","","","","","","","","","","","",""]
[null,85,86,87,88,89,90,91,92,93,94,95,96,97,98]
[null,{"$f":"IFERROR(INT(MID(Protokol,B33,1)),UPPER(MID(Protokol,B33,1)))","v":""},"","","","","","","","","","","","",""]
[null,"Samlet fradrag",null,{"$f":"IF(B22<>\"\",SUMIF(B22:O22,\">0\")+SUMIF(B24:O24,\">0\")+SUMIF(B26:O26,\">0\")+SUMIF(B28:O28,\">0\")+SUMIF(B30:O30,\">0\")+SUMIF(B32:O32,\">0\")+SUMIF(B34:O34,\">0\"),\"\")","v":""},null,"/ Antal øvelser",null,{"$f":"IF(B22<>\"\",COUNTIF(B22:O34,\"E\")+COUNTIF(B22:O34,\"M\")+COUNTIF(B22:O34,\"D\")+COUNTIF(B22:O34,\"R\"),\"\")","v":""},null,"=",{"$f":"IFERROR(IF(ROUND(D35/H35,3)>10,10,ROUND(D35/H35,3)),0)","v":0},null,"Fratrukket 10",null,{"$f":"IF(K35<>0,10-K35,0)","v":0}]
[null,null,null,null,null,null,null,null,"Fradrag for fald:"]
[null,null,null,null,null,null,null,null,"Total yderligere øvelser:",null,null,null,null,null,null,{"$f":"IF(O35<>\"\",O35-O36,0)","v":0}]
[]
[null,null,null,null,null,null,null,null,"Total tekniske øvelser:",null,null,null,null,null,null,{"$f":"IF(P37<>0,ROUND((SUM(P11:P15)+P37)/6,3),0)","v":0}]
[]
[]
[]
[null,null,null,null,"Dommer",null,null,null,null,null,null,"Underskrift"]

{"sheet":"$TekniskArtistisk","index":11,"n_rows":27,"n_cols":16,"rows_kept":27,"cut":false,"hidden":true,"merged":[[0,1,0,2],[0,3,0,10],[0,13,1,14],[0,15,1,15],[1,1,1,2],[1,3,1,10],[6,1,6,2],[6,3,6,10],[7,1,7,2],[7,3,7,10],[2,13,2,14],[3,1,3,2],[3,3,3,10],[3,13,3,14],[4,1,4,2],[4,3,4,6],[4,7,4,8],[4,9,4,10],[4,13,4,14],[16,1,16,2],[16,3,16,12],[17,1,18,2],[17,3,17,12],[18,3,18,12],[24,4,25,9],[24,11,25,15],[26,4,26,9],[26,11,26,15],[13,12,13,13],[14,12,14,13],[9,3,14,11],[9,12,9,13],[10,12,10,13],[11,12,11,13],[12,12,12,13],[20,9,20,14],[22,9,22,14]]}
[null,"Stævne:",null,{"$f":"IF(Sted<>0,Sted,\"\")","v":""},null,null,null,null,null,null,null,{"$f":"P23","v":0},null,"Dommerbord:"]
[null,"Dato:",null,{"$f":"IF(Dato<>0,Dato,\"\")","v":""}]
[null,null,null,null,null,null,null,null,null,null,null,null,null,"Runde nr:"]
[null,"Udøver:",null,{"$f":"IF(Navn<>0,Navn,\"\")","v":""},null,null,null,null,null,null,null,null,null,"Klasse nr:",null,{"$f":"IF(KlasseNr<>0,KlasseNr,\"\")","v":""}]
[null,"Klub:",null,{"$f":"IF(Klub<>0,Klub,\"\")","v":""},null,null,null,"Licensnr.:",null,{"$f":"IF(Licens<>0,Licens,\"\")","v":""},null,null,null,"Arm nr:",null,{"$f":"IF(ArmNr<>0,ArmNr,\"\")","v":""}]
[]
[null,"Hest:",null,{"$f":"IF(Hest<>0,Hest,\"\")","v":""}]
[null,"Longefører:",null,{"$f":"IF(LongeF<>0,LongeF,\"\")","v":""}]
[null,null,null,null,null,null,null,null,null,null,null,null,null,null,"Point"]
[null,null,null,"Sequence",null,null,null,null,null,null,null,null,"S1"]
[null,null,null,null,null,null,null,null,null,null,null,null,"S2"]
[null,null,null,null,null,null,null,null,null,null,null,null,"S3"]
[null,null,null,null,null,null,null,null,null,null,null,null,"S4"]
[null,null,null,null,null,null,null,null,null,null,null,null,"S5"]
[null,null,null,null,null,null,null,null,null,null,null,null,"S6"]
[]
[null,"Struktur\n40 %",null,"Valg af elementer/sekvenser/overgange\nBrug af unikke, originale elementer, sekvenser, overgange og/eller høj grad af kompleksitet i elementer, sekvenser, overgange eller kombinationen af dem i de 6 sekvenser før, mellem og efter de 5 tekniske øvelser",null,null,null,null,null,null,null,null,null,"T1\n40%",{"$f":"SUM(O10:O15)/6","v":0},{"$f":"ROUND(O17*0.4,3)","v":0}]
[null,"KOREOGRAFI\n60%",null,"Sammensætning\nValg af overgange og bevægelser der resulterer i flydende sammenhæng mellem alle øvelser vist i det tekniske program (tekniske øvelser og yderligere øvelser). Veludført integration af de tekniske øvelser i det tekniske program, som viser effektivitet, sammenhæng og flow. Valg af elementer og sekvenser i harmoni med hesten. Balanceret brug af placeringer og retninger.",null,null,null,null,null,null,null,null,null,"T2\n30%",null,{"$f":"ROUND(O18*0.3,3)","v":0}]
[null,null,null,"Udnyttelse af musikken\n• Fuld indlevelse i et gennemført musikalsk artistisk koncept\n• Gribende fortolkning af musikken\n• Høj grad af variation i udtryk, der afspejler forskellige og foranderlige elementer i musikken\n• Komplekst kropssprog og multidirektionale krops- og armbevægelser",null,null,null,null,null,null,null,null,null,"T3\n30%",null,{"$f":"ROUND(O19*0.3,3)","v":0}]
[]
[null,null,null,null,null,null,null,null,null,"Fradrag:"]
[]
[null,null,null,null,null,null,null,null,null,"Total artistisk score:",null,null,null,null,null,{"$f":"ROUND(SUM(P17:P19)-P21,3)","v":0}]
[]
[]
[]
[null,null,null,null,"Dommer",null,null,null,null,null,null,"Underskrift"]

{"sheet":"$TekniskTestYV","index":12,"n_rows":43,"n_cols":16,"rows_kept":43,"cut":false,"hidden":true,"merged":[[0,1,0,2],[0,3,0,10],[0,13,1,14],[0,15,1,15],[1,1,1,2],[1,3,1,10],[2,13,2,14],[3,1,3,2],[3,3,3,10],[3,13,3,14],[4,1,4,2],[4,3,4,6],[4,7,4,8],[4,9,4,10],[4,13,4,14],[6,1,6,2],[6,3,6,10],[7,1,7,2],[7,3,7,10],[9,1,9,4],[9,5,9,8],[9,9,9,14],[10,1,10,4],[10,5,10,8],[10,9,10,14],[11,1,11,4],[11,5,11,8],[11,9,11,14],[34,5,34,6],[34,7,34,8],[34,10,34,11],[12,1,12,4],[12,5,12,8],[12,9,12,14],[13,1,13,4],[13,5,13,8],[13,9,13,14],[42,4,42,9],[42,11,42,15],[7,13,8,15],[34,12,34,13],[35,8,35,13],[36,8,36,14],[38,8,38,14],[40,4,41,9],[40,11,41,15],[14,1,14,4],[14,5,14,8],[14,9,14,14],[16,1,16,14],[18,1,19,14],[34,1,34,2],[34,3,34,4]]}
[null,"Stævne:",null,{"$f":"IF(Sted<>0,Sted,\"\")","v":""},null,null,null,null,null,null,null,{"$f":"P39","v":0},null,"Dommerbord:"]
[null,"Dato:",null,{"$f":"IF(Dato<>0,Dato,\"\")","v":""}]
[null,null,null,null,null,null,null,null,null,null,null,null,null,"Runde nr:"]
[null,"Udøver:",null,{"$f":"IF(Navn<>0,Navn,\"\")","v":""},null,null,null,null,null,null,null,null,null,"Klasse nr:",null,{"$f":"IF(KlasseNr<>0,KlasseNr,\"\")","v":""}]
[null,"Klub:",null,{"$f":"IF(Klub<>0,Klub,\"\")","v":""},null,null,null,"Licensnr.:",null,{"$f":"IF(Licens<>0,Licens,\"\")","v":""},null,null,null,"Arm nr:",null,{"$f":"IF(ArmNr<>0,ArmNr,\"\")","v":""}]
[]
[null,"Hest:",null,{"$f":"IF(Hest<>0,Hest,\"\")","v":""}]
[null,"Longefører:",null,{"$f":"IF(LongeF<>0,LongeF,\"\")","v":""},null,null,null,null,null,null,null,null,null,"De tre øvelser med\nhøjest point tæller"]
[]
[null,"Kategori",null,null,null,"Øvelse",null,null,null,"Kommentarer",null,null,null,null,null,"Point"]
[null,"Balance",null,null,null,"Forlæns knæstand til baglæns stand"]
[null,"Timing / koordination",null,null,null,"Vejrmølle over håndtagene"]
[null,"Styrke",null,null,null,"Albuestand"]
[null,"Springkraft",null,null,null,"Opspring til baglæns skulderstand"]
[null,"Smidighed",null,null,null,"Baglæns nål"]
[null,null,null,null,null,null,null,null,null,null,null,null,null,{"$f":"IFERROR(LARGE(P11:P15,1),0)","v":0},{"$f":"IFERROR(LARGE(P11:P15,2),0)","v":0},{"$f":"IFERROR(LARGE(P11:P15,3),0)","v":0}]
[null,"Udførelse af yderligere øvelser - gennemsnit"]
[null,"Protokol",null,{"$f":"SUBSTITUTE(B19,\" \",\"\")","v":""}]
[]
[]
[null,1,2,3,4,5,6,7,8,9,10,11,12,13,14]
[null,{"$f":"IFERROR(INT(MID(Protokol,B21,1)),UPPER(MID(Protokol,B21,1)))","v":""},"","","","","","","","","","","","",""]
[null,15,16,17,18,19,20,21,22,23,24,25,26,27,28]
[null,{"$f":"IFERROR(INT(MID(Protokol,B23,1)),UPPER(MID(Protokol,B23,1)))","v":""},"","","","","","","","","","","","",""]
[null,29,30,31,32,33,34,35,36,37,38,39,40,41,42]
[null,{"$f":"IFERROR(INT(MID(Protokol,B25,1)),UPPER(MID(Protokol,B25,1)))","v":""},"","","","","","","","","","","","",""]
[null,43,44,45,46,47,48,49,50,51,52,53,54,55,56]
[null,{"$f":"IFERROR(INT(MID(Protokol,B27,1)),UPPER(MID(Protokol,B27,1)))","v":""},"","","","","","","","","","","","",""]
[null,57,58,59,60,61,62,63,64,65,66,67,68,69,70]
[null,{"$f":"IFERROR(INT(MID(Protokol,B29,1)),UPPER(MID(Protokol,B29,1)))","v":""},"","","","","","","","","","","","",""]
[null,71,72,73,74,75,76,77,78,79,80,81,82,83,84]
[null,{"$f":"IFERROR(INT(MID(Protokol,B31,1)),UPPER(MID(Protokol,B31,1)))","v":""},"","","","","","","","","","","","",""]
[null,85,86,87,88,89,90,91,92,93,94,95,96,97,98]
[null,{"$f":"IFERROR(INT(MID(Protokol,B33,1)),UPPER(MID(Protokol,B33,1)))","v":""},"","","","","","","","","","","","",""]
[null,"Samlet fradrag",null,null,null,"/ Antal øvelser",null,null,null,"=",{"$f":"IFERROR(IF(ROUND(D35/H35,3)>10,10,ROUND(D35/H35,3)),0)","v":0},null,"Fratrukket 10",null,{"$f":"IF(K35<>0,10-K35,0)","v":0}]
[null,null,null,null,null,null,null,null,"Fradrag for fald:"]
[null,null,null,null,null,null,null,null,"Total yderligere øvelser:",null,null,null,null,null,null,{"$f":"IF(O35<>\"\",O35-O36,0)","v":0}]
[]
[null,null,null,null,null,null,null,null,"Total tekniske øvelser:",null,null,null,null,null,null,{"$f":"IF(P37<>0,ROUND((SUM(N16:P16)+P37)/4,3),0)","v":0}]
[]
[]
[]
[null,null,null,null,"Dommer",null,null,null,null,null,null,"Underskrift"]

{"sheet":"$TekniskArtistiskYV","index":13,"n_rows":26,"n_cols":16,"rows_kept":26,"cut":false,"hidden":true,"merged":[[0,1,0,2],[0,3,0,10],[0,13,1,14],[0,15,1,15],[1,1,1,2],[1,3,1,10],[3,1,3,2],[3,3,3,10],[3,13,3,14],[4,1,4,2],[4,3,4,6],[4,7,4,8],[4,9,4,10],[4,13,4,14],[9,12,9,13],[10,12,10,13],[11,12,11,13],[12,12,12,13],[2,13,2,14],[6,1,6,2],[6,3,6,10],[7,1,7,2],[7,3,7,10],[9,3,12,11],[14,1,14,2],[14,3,14,12],[15,1,16,2],[15,3,15,12],[16,3,16,12],[18,9,18,14],[20,9,20,14],[23,4,24,9],[23,11,24,15],[25,4,25,9],[25,11,25,15]]}
[null,"Stævne:",null,{"$f":"IF(Sted<>0,Sted,\"\")","v":""},null,null,null,null,null,null,null,{"$f":"P21","v":0},null,"Dommerbord:"]
[null,"Dato:",null,{"$f":"IF(Dato<>0,Dato,\"\")","v":""}]
[null,null,null,null,null,null,null,null,null,null,null,null,null,"Runde nr:"]
[null,"Udøver:",null,{"$f":"IF(Navn<>0,Navn,\"\")","v":""},null,null,null,null,null,null,null,null,null,"Klasse nr:",null,{"$f":"IF(KlasseNr<>0,KlasseNr,\"\")","v":""}]
[null,"Klub:",null,{"$f":"IF(Klub<>0,Klub,\"\")","v":""},null,null,null,"Licensnr.:",null,{"$f":"IF(Licens<>0,Licens,\"\")","v":""},null,null,null,"Arm nr:",null,{"$f":"IF(ArmNr<>0,ArmNr,\"\")","v":""}]
[]
[null,"Hest:",null,{"$f":"IF(Hest<>0,Hest,\"\")","v":""}]
[null,"Longefører:",null,{"$f":"IF(LongeF<>0,LongeF,\"\")","v":""}]
[null,null,null,null,null,null,null,null,null,null,null,null,null,null,"Point"]
[null,null,null,"Sequence",null,null,null,null,null,null,null,null,"S1"]
[null,null,null,null,null,null,null,null,null,null,null,null,"S2"]
[null,null,null,null,null,null,null,null,null,null,null,null,"S3"]
[null,null,null,null,null,null,null,null,null,null,null,null,"S4"]
[]
[null,"Struktur\n40 %",null,"Valg af elementer/sekvenser/overgange\nBrug af unikke, originale elementer, sekvenser, overgange og/eller høj grad af kompleksitet i elementer, sekvenser, overgange eller kombinationen af dem i de 4 sekvenser før, mellem og efter de 3 tekniske øvelser",null,null,null,null,null,null,null,null,null,"T1\n40%",{"$f":"SUM(O10:O13)/4","v":0},{"$f":"ROUND(O15*0.4,3)","v":0}]
[null,"KOREOGRAFI\n60%",null,"Sammensætning\nValg af overgange og bevægelser der resulterer i flydende sammenhæng mellem alle øvelser vist i det tekniske program (tekniske øvelser og yderligere øvelser). Veludført integration af de tekniske øvelser i det tekniske program, som viser effektivitet, sammenhæng og flow. Valg af elementer og sekvenser i harmoni med hesten. Balanceret brug af placeringer og retninger.",null,null,null,null,null,null,null,null,null,"T2\n30%",null,{"$f":"ROUND(O16*0.3,3)","v":0}]
[null,null,null,"Udnyttelse af musikken\n• Fuld indlevelse i et gennemført musikalsk artistisk koncept\n• Gribende fortolkning af musikken\n• Høj grad af variation i udtryk, der afspejler forskellige og foranderlige elementer i musikken\n• Komplekst kropssprog og multidirektionale krops- og armbevægelser",null,null,null,null,null,null,null,null,null,"T3\n30%",null,{"$f":"ROUND(O17*0.3,3)","v":0}]
[]
[null,null,null,null,null,null,null,null,null,"Fradrag:"]
[]
[null,null,null,null,null,null,null,null,null,"Total artistisk score:",null,null,null,null,null,{"$f":"ROUND(SUM(P15:P17)-P19,3)","v":0}]
[]
[]
[]
[]
[null,null,null,null,"Dommer",null,null,null,null,null,null,"Underskrift"]

{"sheet":"$ObliMini","index":14,"n_rows":46,"n_cols":16,"rows_kept":46,"cut":false,"hidden":true,"merged":[[0,1,0,2],[0,3,0,10],[0,13,1,14],[0,15,1,15],[1,1,1,2],[1,3,1,10],[2,13,2,14],[3,1,3,2],[3,3,3,10],[3,13,3,14],[4,1,4,2],[4,3,4,6],[4,7,4,8],[4,9,4,10],[4,13,4,14],[12,1,12,6],[12,7,12,14],[13,1,13,6],[13,7,13,14],[6,1,6,2],[6,3,6,10],[7,1,7,2],[7,3,7,10],[10,7,10,14],[11,1,11,6],[11,7,11,14],[45,4,45,9],[45,11,45,15],[14,1,14,6],[14,7,14,14],[15,1,15,6],[15,7,15,14],[17,7,17,14],[19,7,19,14],[21,1,41,15],[43,4,44,9],[43,11,44,15]]}
[null,"Stævne:",null,{"$f":"IF(Sted<>0,Sted,\"\")","v":""},null,null,null,null,null,null,null,{"$f":"P20","v":0},null,"Dommerbord:"]
[null,"Dato:",null,{"$f":"IF(Dato<>0,Dato,\"\")","v":""}]
[null,null,null,null,null,null,null,null,null,null,null,null,null,"Runde nr:"]
[null,"Udøver:",null,{"$f":"IF(Navn<>0,Navn,\"\")","v":""},null,null,null,null,null,null,null,null,null,"Klasse nr:",null,{"$f":"IF(KlasseNr<>0,KlasseNr,\"\")","v":""}]
[null,"Klub:",null,{"$f":"IF(Klub<>0,Klub,\"\")","v":""},null,null,null,"Licensnr.:",null,{"$f":"IF(Licens<>0,Licens,\"\")","v":""},null,null,null,"Arm nr:",null,{"$f":"IF(ArmNr<>0,ArmNr,\"\")","v":""}]
[]
[null,"Hest:",null,{"$f":"IF(Hest<>0,Hest,\"\")","v":""}]
[null,"Longefører:",null,{"$f":"IF(LongeF<>0,LongeF,\"\")","v":""}]
[]
[]
[null,null,null,null,null,null,null,"Kommentarer",null,null,null,null,null,null,null,"Point"]
[null,"Ridesæde"]
[null,"Fane uden arm"]
[null,"Knæstand"]
[null,"Halv mølle"]
[null,"Baglæns grundsæde\nafgang til indvendig"]
[]
[null,null,null,null,null,null,null,"Samlet obligatoriske:",null,null,null,null,null,null,null,{"$f":"SUM(P12:P16)","v":0}]
[]
[null,null,null,null,null,null,null,"/5 = Total obligatoriske:",null,null,null,null,null,null,null,{"$f":"ROUND(P18/5,3)","v":0}]
[]
[]
[]
[]
[]
[]
[]
[]
[]
[]
[]
[]
[]
[]
[]
[]
[]
[]
[]
[]
[]
[]
[]
[]
[]
[null,null,null,null,"Dommer",null,null,null,null,null,null,"Underskrift"]

{"sheet":"$ObliE","index":15,"n_rows":40,"n_cols":16,"rows_kept":40,"cut":false,"hidden":true,"merged":[[19,8,19,14],[20,8,20,14],[6,1,6,2],[6,3,6,10],[7,1,7,2],[7,3,7,10],[12,10,12,12],[9,13,9,15],[10,1,10,2],[10,3,10,9],[10,10,10,12],[11,1,11,2],[11,3,11,9],[11,10,11,12],[9,1,9,9],[9,10,9,12],[3,3,3,10],[3,13,3,14],[4,1,4,2],[4,3,4,6],[4,7,4,8],[4,9,4,10],[4,13,4,14],[37,4,38,9],[37,11,38,15],[39,4,39,9],[39,11,39,15],[0,1,0,2],[0,3,0,10],[0,13,1,14],[0,15,1,15],[1,1,1,2],[1,3,1,10],[23,1,35,9],[23,11,23,14],[29,11,29,14],[12,1,12,9],[2,13,2,14],[3,1,3,2],[26,11,26,13],[27,11,27,13],[24,11,24,14],[12,13,12,14],[13,1,13,14],[20,1,20,7],[21,1,21,7],[16,8,16,14],[15,8,15,14],[16,1,16,7],[17,1,17,7],[18,1,18,7],[21,8,21,14],[19,1,19,7],[17,8,17,14],[18,8,18,14]]}
[null,"Stævne:",null,{"$f":"IF(Sted<>0,Sted,\"\")","v":""},null,null,null,null,null,null,null,{"$f":"P30","v":0},null,"Dommerbord:"]
[null,"Dato:",null,{"$f":"IF(Dato<>0,Dato,\"\")","v":""}]
[null,null,null,null,null,null,null,null,null,null,null,null,null,"Runde nr:"]
[null,"Udøver:",null,{"$f":"IF(Navn<>0,Navn,\"\")","v":""},null,null,null,null,null,null,null,null,null,"Klasse nr:",null,{"$f":"IF(KlasseNr<>0,KlasseNr,\"\")","v":""}]
[null,"Klub:",null,{"$f":"IF(Klub<>0,Klub,\"\")","v":""},null,null,null,"Licensnr.:",null,{"$f":"IF(Licens<>0,Licens,\"\")","v":""},null,null,null,"Arm nr:",null,{"$f":"IF(ArmNr<>0,ArmNr,\"\")","v":""}]
[]
[null,"Hest:",null,{"$f":"IF(Hest<>0,Hest,\"\")","v":""}]
[null,"Longefører:",null,{"$f":"IF(LongeF<>0,LongeF,\"\")","v":""}]
[]
["h","HEST - Samarbejdet mellem longefører og hest",null,null,null,null,null,null,null,null,"Kommentarer",null,null,"Point - 0 til 10"]
["h","Lydighed",null,"Opmærksomhed (på signaler) og tillid. \nPerfekt volte",null,null,null,null,null,null,null,null,null,0.5,null,{"$f":"O11*N11","v":0}]
["h","Longering",null,"Korrekte hjælpere. Passende brug af pisk. Longelinen er udstrakt med kontakt til hesten. Longefører står stille med god holdning",null,null,null,null,null,null,null,null,null,0.5,null,{"$f":"O12*N12","v":0}]
["h","Fradrag"]
["h","Total - Hest",null,null,null,null,null,null,null,null,null,null,null,null,null,{"$f":"(P11+P12)-P13","v":0}]
[]
[null,null,null,null,null,null,null,null,"Kommentarer",null,null,null,null,null,null,"Point"]
[null,"Ridesæde"]
[null,"Fane uden arm"]
[null,"Knæstand"]
[null,"Forlæns sving - samlede ben"]
[null,"Halv mølle"]
[null,"Baglæns sving - adskilte ben - afg. ind"]
[]
[null,"Kommentarer",null,null,null,null,null,null,null,null,null,"Samlet obligatoriske øvelser:",null,null,null,{"$f":"SUM(P17:P22)","v":0}]
[null,null,null,null,null,null,null,null,null,null,null,"/6 øvelser:",null,null,null,{"$f":"P24/6","v":0}]
[]
[null,null,null,null,null,null,null,null,null,null,null,"Øvelser",null,null,{"$f":"1-O28","v":0.75},{"$f":"P25*O27","v":0}]
[null,null,null,null,null,null,null,null,null,null,null,"Hest",null,null,{"$f":"N12/2","v":0.25},{"$f":"P14*O28","v":0}]
[]
[null,null,null,null,null,null,null,null,null,null,null,"Total obligatoriske:",null,null,null,{"$f":"ROUND(P27+P28,3)","v":0}]
[]
[]
[]
[]
[]
[]
[]
[]
[]
[null,null,null,null,"Dommer",null,null,null,null,null,null,"Underskrift"]

{"sheet":"$KürE","index":16,"n_rows":42,"n_cols":16,"rows_kept":42,"cut":false,"hidden":true,"merged":[[39,4,40,9],[39,11,40,15],[41,4,41,9],[41,11,41,15],[9,10,9,12],[9,13,9,15],[9,1,9,9],[12,1,12,9],[12,10,12,12],[12,13,12,14],[13,1,13,14],[30,1,30,11],[30,12,30,15],[11,1,11,2],[11,3,11,9],[11,10,11,12],[15,1,15,4],[16,1,28,15],[6,1,6,2],[6,3,6,10],[7,1,7,2],[7,3,7,10],[10,1,10,2],[10,3,10,9],[10,10,10,12],[2,13,2,14],[3,1,3,2],[3,3,3,10],[3,13,3,14],[4,1,4,2],[4,3,4,6],[4,7,4,8],[4,9,4,10],[4,13,4,14],[0,1,0,2],[0,3,0,10],[0,13,1,14],[0,15,1,15],[1,1,1,2],[1,3,1,10],[35,10,35,14],[31,1,31,11],[31,12,31,13],[32,1,32,11],[32,12,32,13],[33,1,33,11],[33,12,33,13]]}
[null,"Stævne:",null,{"$f":"IF(Sted<>0,Sted,\"\")","v":""},null,null,null,null,null,null,null,{"$f":"P36","v":0},null,"Dommerbord:"]
[null,"Dato:",null,{"$f":"IF(Dato<>0,Dato,\"\")","v":""}]
[null,null,null,null,null,null,null,null,null,null,null,null,null,"Runde nr:"]
[null,"Udøver:",null,{"$f":"IF(Navn<>0,Navn,\"\")","v":""},null,null,null,null,null,null,null,null,null,"Klasse nr:",null,{"$f":"IF(KlasseNr<>0,KlasseNr,\"\")","v":""}]
[null,"Klub:",null,{"$f":"IF(Klub<>0,Klub,\"\")","v":""},null,null,null,"Licensnr.:",null,{"$f":"IF(Licens<>0,Licens,\"\")","v":""},null,null,null,"Arm nr:",null,{"$f":"IF(ArmNr<>0,ArmNr,\"\")","v":""}]
[]
[null,"Hest:",null,{"$f":"IF(Hest<>0,Hest,\"\")","v":""}]
[null,"Longefører:",null,{"$f":"IF(LongeF<>0,LongeF,\"\")","v":""}]
[]
["h","HEST - Samarbejdet mellem longefører og hest",null,null,null,null,null,null,null,null,"Kommentarer",null,null,"Point - 0 til 10"]
["h","Lydighed",null,"Opmærksomhed (på signaler) og tillid. \nPerfekt volte",null,null,null,null,null,null,null,null,null,0.5,null,{"$f":"O11*N11","v":0}]
["h","Longering",null,"Korrekte hjælpere. Passende brug af pisk. Longelinen er udstrakt med kontakt til hesten. Longefører står stille med god holdning",null,null,null,null,null,null,null,null,null,0.5,null,{"$f":"O12*N12","v":0}]
["h","Fradrag"]
["h","Total - Hest",null,null,null,null,null,null,null,null,null,null,null,null,null,{"$f":"(P11+P12)-P13","v":0}]
[]
[null,"Frit program"]
[null,"Protokol/kommentarer"]
[]
[]
[]
[]
[]
[]
[]
[]
[]
[]
[]
[]
[]
[null,"Sværhedsgrad:",null,null,null,null,null,null,null,null,null,null,"Ingen point"]
[null,"Sammesætning:",null,null,null,null,null,null,null,null,null,null,null,null,{"$f":"IF(O34>0,1/4,1/3)","v":0.25},{"$f":"M32*O32","v":0}]
[null,"Udførelse:",null,null,null,null,null,null,null,null,null,null,null,null,{"$f":"IF(O34>0,2/4,2/3)","v":0.5},{"$f":"M33*O33","v":0}]
["h","Hest:",null,null,null,null,null,null,null,null,null,null,{"$f":"P14","v":0},null,0.25,0]
[]
[null,null,null,null,null,null,null,null,null,null,"Total frit program:",null,null,null,null,{"$f":"ROUND(SUM(P32:P34),3)","v":0}]
[]
[]
[]
[]
[]
[null,null,null,null,"Dommer",null,null,null,null,null,null,"Underskrift"]

{"sheet":"$ObliF","index":17,"n_rows":39,"n_cols":16,"rows_kept":39,"cut":false,"hidden":true,"merged":[[0,1,0,2],[0,3,0,10],[0,13,1,14],[0,15,1,15],[1,1,1,2],[1,3,1,10],[2,13,2,14],[3,1,3,2],[3,3,3,10],[3,13,3,14],[4,1,4,2],[4,3,4,6],[4,7,4,8],[4,9,4,10],[4,13,4,14],[6,1,6,2],[6,3,6,10],[7,1,7,2],[7,3,7,10],[9,1,9,9],[9,10,9,12],[9,13,9,15],[10,1,10,2],[10,3,10,9],[10,10,10,12],[11,1,11,2],[11,3,11,9],[11,10,11,12],[17,1,17,7],[17,8,17,14],[18,1,18,7],[18,8,18,14],[12,1,12,9],[12,10,12,12],[12,13,12,14],[13,1,13,14],[15,8,15,14],[16,1,16,7],[16,8,16,14],[36,4,37,9],[36,11,37,15],[38,4,38,9],[38,11,38,15],[19,1,19,7],[19,8,19,14],[20,1,20,7],[20,8,20,14],[22,1,34,9],[22,11,22,14],[23,11,23,14],[28,11,28,14],[25,11,25,13],[26,11,26,13]]}
[null,"Stævne:",null,{"$f":"IF(Sted<>0,Sted,\"\")","v":""},null,null,null,null,null,null,null,{"$f":"P29","v":0},null,"Dommerbord:"]
[null,"Dato:",null,{"$f":"IF(Dato<>0,Dato,\"\")","v":""}]
[null,null,null,null,null,null,null,null,null,null,null,null,null,"Runde nr:"]
[null,"Udøver:",null,{"$f":"IF(Navn<>0,Navn,\"\")","v":""},null,null,null,null,null,null,null,null,null,"Klasse nr:",null,{"$f":"IF(KlasseNr<>0,KlasseNr,\"\")","v":""}]
[null,"Klub:",null,{"$f":"IF(Klub<>0,Klub,\"\")","v":""},null,null,null,"Licensnr.:",null,{"$f":"IF(Licens<>0,Licens,\"\")","v":""},null,null,null,"Arm nr:",null,{"$f":"IF(ArmNr<>0,ArmNr,\"\")","v":""}]
[]
[null,"Hest:",null,{"$f":"IF(Hest<>0,Hest,\"\")","v":""}]
[null,"Longefører:",null,{"$f":"IF(LongeF<>0,LongeF,\"\")","v":""}]
[]
["h","HEST - Samarbejdet mellem longefører og hest",null,null,null,null,null,null,null,null,"Kommentarer",null,null,"Point - 0 til 10"]
["h","Lydighed",null,"Opmærksomhed (på signaler) og tillid. \nPerfekt volte",null,null,null,null,null,null,null,null,null,0.5,null,{"$f":"O11*N11","v":0}]
["h","Longering",null,"Korrekte hjælpere. Passende brug af pisk. Longelinen er udstrakt med kontakt til hesten. Longefører står stille med god holdning",null,null,null,null,null,null,null,null,null,0.5,null,{"$f":"O12*N12","v":0}]
["h","Fradrag"]
["h","Total - Hest",null,null,null,null,null,null,null,null,null,null,null,null,null,{"$f":"(P11+P12)-P13","v":0}]
[]
[null,null,null,null,null,null,null,null,"Kommentarer",null,null,null,null,null,null,"Point"]
[null,"Ridesæde"]
[null,"Fane uden arm"]
[null,"Knæstand"]
[null,"Halv mølle"]
[null,"Baglæns grundsæde\nafgang til indvendig"]
[]
[null,"Kommentarer",null,null,null,null,null,null,null,null,null,"Samlet obligatoriske øvelser:",null,null,null,{"$f":"SUM(P17:P21)","v":0}]
[null,null,null,null,null,null,null,null,null,null,null,"/5 øvelser:",null,null,null,{"$f":"P23/5","v":0}]
[]
[null,null,null,null,null,null,null,null,null,null,null,"Øvelser",null,null,{"$f":"1-O27","v":0.75},{"$f":"P24*O26","v":0}]
[null,null,null,null,null,null,null,null,null,null,null,"Hest",null,null,{"$f":"N12/2","v":0.25},{"$f":"P13*O27","v":0}]
[]
[null,null,null,null,null,null,null,null,null,null,null,"Total obligatoriske:",null,null,null,{"$f":"ROUND(P26+P27,3)","v":0}]
[]
[]
[]
[]
[]
[]
[]
[]
[]
[null,null,null,null,"Dommer",null,null,null,null,null,null,"Underskrift"]

{"sheet":"$KürF","index":18,"n_rows":43,"n_cols":16,"rows_kept":43,"cut":false,"hidden":true,"merged":[[0,1,0,2],[0,3,0,10],[0,13,1,14],[0,15,1,15],[1,1,1,2],[1,3,1,10],[2,13,2,14],[3,1,3,2],[3,3,3,10],[3,13,3,14],[4,1,4,2],[4,3,4,6],[4,7,4,8],[4,9,4,10],[4,13,4,14],[6,1,6,2],[6,3,6,10],[7,1,7,2],[7,3,7,10],[9,1,9,9],[9,10,9,12],[16,1,28,15],[9,13,9,15],[10,1,10,2],[10,3,10,9],[10,10,10,12],[11,1,11,2],[11,3,11,9],[11,10,11,12],[12,1,12,9],[12,10,12,12],[12,13,12,14],[13,1,13,14],[15,1,15,4],[42,4,42,9],[42,11,42,15],[30,1,30,11],[31,1,31,11],[31,12,31,13],[32,1,32,11],[32,12,32,13],[34,1,34,11],[34,12,34,13],[36,10,36,14],[40,4,41,9],[40,11,41,15],[33,1,33,11],[30,12,30,13],[33,12,33,13]]}
[null,"Stævne:",null,{"$f":"IF(Sted<>0,Sted,\"\")","v":""},null,null,null,null,null,null,null,{"$f":"P37","v":0},null,"Dommerbord:"]
[null,"Dato:",null,{"$f":"IF(Dato<>0,Dato,\"\")","v":""}]
[null,null,null,null,null,null,null,null,null,null,null,null,null,"Runde nr:"]
[null,"Udøver:",null,{"$f":"IF(Navn<>0,Navn,\"\")","v":""},null,null,null,null,null,null,null,null,null,"Klasse nr:",null,{"$f":"IF(KlasseNr<>0,KlasseNr,\"\")","v":""}]
[null,"Klub:",null,{"$f":"IF(Klub<>0,Klub,\"\")","v":""},null,null,null,"Licensnr.:",null,{"$f":"IF(Licens<>0,Licens,\"\")","v":""},null,null,null,"Arm nr:",null,{"$f":"IF(ArmNr<>0,ArmNr,\"\")","v":""}]
[]
[null,"Hest:",null,{"$f":"IF(Hest<>0,Hest,\"\")","v":""}]
[null,"Longefører:",null,{"$f":"IF(LongeF<>0,LongeF,\"\")","v":""}]
[]
["h","HEST - Samarbejdet mellem longefører og hest",null,null,null,null,null,null,null,null,"Kommentarer",null,null,"Point - 0 til 10"]
["h","Lydighed",null,"Opmærksomhed (på signaler) og tillid. \nPerfekt volte",null,null,null,null,null,null,null,null,null,0.5,null,{"$f":"O11*N11","v":0}]
["h","Longering",null,"Korrekte hjælpere. Passende brug af pisk. Longelinen er udstrakt med kontakt til hesten. Longefører står stille med god holdning",null,null,null,null,null,null,null,null,null,0.5,null,{"$f":"O12*N12","v":0}]
["h","Fradrag"]
["h","Total - Hest",null,null,null,null,null,null,null,null,null,null,null,null,null,{"$f":"(P11+P12)-P13","v":0}]
[]
[null,"Frit program"]
[null,"Protokol/kommentarer"]
[]
[]
[]
[]
[]
[]
[]
[]
[]
[]
[]
[]
[null,null,null,null,null,null,null,null,null,null,null,null,null,null,{"$f":"IF(O35>0,4,3)","v":4}]
[null,"Balance:",null,null,null,null,null,null,null,null,null,null,null,null,{"$f":"1/O30/2","v":0.125},{"$f":"M31*O31","v":0}]
[null,"Spændstighed og stræk:",null,null,null,null,null,null,null,null,null,null,null,null,{"$f":"1/O30/2","v":0.125},{"$f":"M32*O32","v":0}]
[null,"Hensynstagen til hesten:",null,null,null,null,null,null,null,null,null,null,null,null,{"$f":"2/O30*3/5","v":0.3},{"$f":"M33*O33","v":0}]
[null,"Udstråling, karisma, udnyttelse af musik:",null,null,null,null,null,null,null,null,null,null,null,null,{"$f":"2/O30*2/5","v":0.2},{"$f":"M34*O34","v":0}]
["h","Hest:",null,null,null,null,null,null,null,null,null,null,{"$f":"P14","v":0},null,0.25,{"$f":"M35*O35","v":0}]
[]
[null,null,null,null,null,null,null,null,null,null,"Total frit program:",null,null,null,null,{"$f":"ROUND(SUM(P31:P35),3)","v":0}]
[]
[]
[]
[]
[]
[null,null,null,null,"Dommer",null,null,null,null,null,null,"Underskrift"]

{"sheet":"$Stam","index":19,"n_rows":45,"n_cols":14,"rows_kept":45,"cut":false,"hidden":true,"merged":[[39,13,39,15],[44,7,45,9],[36,13,36,15],[37,10,37,12],[37,13,37,15],[38,10,38,12],[38,13,38,15],[44,10,45,11],[39,6,39,8],[39,9,39,10],[39,11,39,12],[30,1,39,5],[30,10,30,12],[30,13,30,15],[31,6,34,8],[31,10,31,12],[31,13,31,15],[32,10,32,12],[32,13,32,15],[33,10,33,12],[33,13,33,15],[34,10,34,12],[34,13,34,15],[35,6,38,8],[35,10,35,12],[35,13,35,15],[36,10,36,12],[1,1,3,5],[1,6,1,8],[1,9,1,15],[2,6,2,8],[2,9,2,15],[3,6,3,8],[3,9,3,15],[5,1,8,5],[5,6,5,8],[5,9,5,15],[6,6,6,8],[6,9,6,15],[7,6,7,8],[7,9,7,15],[8,6,8,8],[8,9,8,15],[10,1,11,5],[10,6,10,8],[10,9,10,15],[11,6,11,8],[11,9,11,15]]}
[]
[null,"Oplysninger om stævnet",null,null,null,null,"Dato:"]
[null,null,null,null,null,null,"Stævne:"]
[null,null,null,null,null,null,"Klassenummer:"]
[]
[null,"Oplysninger om voltigøren",null,null,null,null,"Udøver:"]
[null,null,null,null,null,null,"Armnummer:"]
[null,null,null,null,null,null,"Klub:"]
[null,null,null,null,null,null,"Licensnummer:"]
[]
[null,"Oplysninger om hesten",null,null,null,null,"Hest:"]
[null,null,null,null,null,null,"Longefører:"]
[]
[]
[]
[]
[]
[]
[]
[]
[]
[]
[]
[]
[]
[]
[]
[]
[]
[]
[null,"Resultater\nData hentes af resultatskema, flyt eller rediger ikke denne boks",null,null,null,null,null,null,null,null,"Runde 1",null,null,"Runde 2"]
[null,null,null,null,null,null,"Obligatorisk / Teknisk",null,null,"A"]
[null,null,null,null,null,null,null,null,null,"B"]
[null,null,null,null,null,null,null,null,null,"C"]
[null,null,null,null,null,null,null,null,null,"D"]
[null,null,null,null,null,null,"Frit program / Teknisk",null,null,"A"]
[null,null,null,null,null,null,null,null,null,"B"]
[null,null,null,null,null,null,null,null,null,"C"]
[null,null,null,null,null,null,null,null,null,"D"]
[null,null,null,null,null,null,"Klasse"]
[]
[]
[]
[]
[null,null,null,null,null,null,null,"Total",null,null,{"$f":"IF(COUNTIF(K32:P39,\">0\"),SUM(K32:P39)/COUNTIF(K32:P39,\">0\"),\"\")","v":""}]